bitfinex/quotes_ETHUSD_20220305
["timestamp","ask_amount","ask_price","bid_price","bid_amount"]
[1646497553940,1.54647012,2649.8,2649.5,0.00300675]
[1646497554840,1.54647012,2649.8,2649.2,1.1887]
[1646497555042,1.54647012,2649.8,2649.5,0.00300675]
[1646497556041,1.54647012,2649.8,2649.2,2.1887]
[1646497556240,1.54647012,2649.8,2649.2,1.1887]
[1646497556441,1.54647012,2649.8,2649.5,0.00300675]
[1646497557480,1.54647012,2649.8,2649.2,1.1887]
[1646497557680,1.54647012,2649.8,2649.5,0.00300584]
[1646497558583,1.54647012,2649.8,2649.2,1.1887]
[1646497558784,1.54647012,2649.8,2649.5,0.00300584]
[1646497559584,1.54647012,2649.8,2649.2,5.6887]
[1646497559985,1.54647012,2649.8,2649.5,0.00300584]
[1646497560838,1.54647012,2649.8,2649.2,5.6887]
[1646497561039,1.54647012,2649.8,2649.5,0.00290093]
[1646497562039,1.54647012,2649.8,2649.2,5.6887]
[1646497562440,1.54647012,2649.8,2649.5,0.00290093]
[1646497564483,1.54647012,2649.8,2649.2,5.5]
[1646497564684,1.54647012,2649.8,2649.5,0.00291153]
[1646497565683,1.54647012,2649.8,2649.2,5.5]
[1646497565888,1.54647012,2649.8,2649.5,0.00291153]
[1646497566886,1.54647012,2649.8,2649.2,2.1887]
[1646497567089,1.54647012,2649.8,2649.5,0.00291153]
[1646497567991,1.54647012,2649.8,2649.3,1.9896]
[1646497568243,1.54647012,2649.8,2649.5,0.00303646]
[1646497569448,1.54647012,2649.8,2649.3,1.9896]
[1646497569649,1.54647012,2649.8,2649.5,0.00303646]
[1646497570450,1.54647012,2649.8,2649.3,1.9896]
[1646497570653,1.54647012,2649.8,2649.5,0.00303646]
[1646497570852,1.54513253,2649.8,2649.5,0.00303646]
[1646497571058,5.04513253,2649.8,2649.5,0.00303646]
[1646497571454,3.5,2649.8,2649.5,0.00303646]
[1646497571653,3.5,2649.8,2649.3,0.9896]
[1646497572090,3.5,2649.8,2649.5,0.00289766]
[1646497572389,0.95720448,2649.9,2649.5,0.00289766]
[1646497572789,0.95720448,2649.9,2649.3,0.9896]
[1646497573089,0.95720448,2649.9,2649.5,0.00289769]
[1646497573991,0.95720448,2649.9,2649.3,0.9896]
[1646497574392,0.95720448,2649.9,2649.5,0.00289769]
[1646497575194,0.95720448,2649.9,2649.3,0.9896]
[1646497575593,0.95720448,2649.9,2649.5,0.00291197]
[1646497575858,0.01336448,2649.9,2649.5,0.00291197]
[1646497576460,0.01336448,2649.9,2649.3,0.9896]
[1646497576861,0.01336448,2649.9,2649.5,0.00291197]
[1646497577682,0.01336448,2649.9,2649.3,1.455]
[1646497577963,0.01336448,2649.9,2649.5,0.00291197]
[1646497578966,0.01336448,2649.9,2649.4,0.9896]
[1646497579166,0.01336448,2649.9,2649.5,0.0029102]
[1646497579988,0.01336448,2649.9,2649.4,0.9896]
[1646497580386,0.01336448,2649.9,2649.5,0.0029102]
[1646497581188,0.01336448,2649.9,2649.4,0.9896]
[1646497581588,0.01336448,2649.9,2649.5,0.0029102]
[1646497582591,0.01336448,2649.9,2649.4,0.9896]
[1646497582790,0.01336448,2649.9,2649.5,0.00291043]
[1646497583638,0.01336448,2649.9,2649.4,0.9896]
[1646497583838,0.01336448,2649.9,2649.5,0.00291043]
[1646497584939,0.01336448,2649.9,2649.4,0.9896]
[1646497585139,0.01336448,2649.9,2649.5,0.00291043]
[1646497586140,0.01336448,2649.9,2649.4,0.9896]
[1646497586342,0.01336448,2649.9,2649.5,0.0029104]
[1646497587887,0.01336448,2649.9,2649.5,1.0029104]
[1646497588291,0.01336448,2649.9,2649.7,1.08641268]
[1646497589492,0.01336448,2649.9,2649.8,3.5]
[1646497589694,0.01336448,2649.9,2649.8,1.0]
[1646497590095,0.01336448,2649.9,2649.7,1.08641268]
[1646497591039,0.01336448,2649.9,2649.8,3.5]
[1646497591242,0.01336448,2649.9,2649.8,4.955]
[1646497591437,0.01336448,2649.9,2649.8,6.13506141]
[1646497591438,0.01204228,2649.9,2649.8,6.13506141]
[1646497591648,0.01204228,2649.9,2649.8,21.29926141]
[1646497592640,0.01204228,2649.9,2649.8,9.77926141]
[1646497593242,0.01204228,2649.9,2649.8,10.34159511]
[1646497593744,0.01204228,2649.9,2649.8,21.86159511]
[1646497594687,0.01204228,2649.9,2649.8,10.34159511]
[1646497596387,0.01204228,2649.9,2649.8,21.86159511]
[1646497596793,0.01638089,2650.0,2649.8,21.86159511]
[1646497597090,0.01468668,2649.9,2649.8,19.30500511]
[1646497598947,0.01468668,2649.9,2649.8,19.49360511]
[1646497601048,0.01468668,2649.9,2649.8,7.03019511]
[1646497601248,0.01468668,2649.9,2649.8,10.53019511]
[1646497601850,0.01468668,2649.9,2649.8,10.37301477]
[1646497602585,0.01468668,2649.9,2649.8,21.89301477]
[1646497605093,0.0163753,2650.0,2649.9,17.84146]
[1646497605292,0.006068,2650.2,2650.1,14.1642]
[1646497605491,0.06238328,2650.2,2650.1,15.6088]
[1646497605756,0.06238328,2650.2,2650.1,16.79926141]
[1646497606150,0.06238328,2650.2,2650.1,16.98776141]
[1646497606348,0.01161447,2650.7,2650.5,1.04578892]
[1646497606551,0.03054791,2650.7,2650.4,0.455]
[1646497606752,0.01893344,2650.7,2650.3,1.2298]
[1646497606949,1.54708522,2650.6,2650.4,0.9896]
[1646497607360,1.65042834,2650.3,2649.8,2.7921337]
[1646497607954,1.54731835,2650.2,2649.8,2.7921337]
[1646497608350,1.54731835,2650.2,2649.8,1.5623337]
[1646497608951,1.56625179,2650.2,2649.8,1.5623337]
[1646497609150,0.01893344,2650.2,2649.8,1.5623337]
[1646497609352,1.55027099,2650.1,2649.8,0.5623337]
[1646497609791,1.55027099,2650.1,2649.6,0.00291333]
[1646497609996,1.56920443,2650.1,2649.6,0.00291333]
[1646497610290,0.01893344,2650.1,2649.6,1.0029133]
[1646497610491,0.02184619,2650.1,2649.6,0.0029133]
[1646497611294,0.02184619,2650.1,2649.5,6.8771]
[1646497611295,0.01893344,2650.1,2649.5,6.8771]
[1646497611591,0.01893344,2650.1,2649.8,1.0]
[1646497611792,0.02185684,2650.1,2649.8,2.0]
[1646497611993,0.02185684,2650.1,2649.8,1.0]
[1646497612394,0.02185684,2650.1,2650.0,1.2273712]
[1646497612702,0.02185691,2650.1,2650.0,1.2273712]
[1646497612893,0.02185691,2650.1,2649.8,1.0]
[1646497614355,0.02185691,2650.1,2649.8,1.57985999]
[1646497614755,0.02185691,2650.1,2649.8,2.62158331]
[1646497614956,0.01893344,2650.1,2649.8,3.62158331]
[1646497615158,0.02073219,2650.1,2649.8,3.62158331]
[1646497615362,0.02073219,2650.1,2649.9,1.0]
[1646497615755,0.02073219,2650.1,2650.0,1.0]
[1646497616155,0.01893344,2650.1,2650.0,1.0]
[1646497616357,0.02073223,2650.1,2650.0,1.0]
[1646497617093,0.02073223,2650.1,2649.8,2.57985999]
[1646497617391,0.01893344,2650.1,2649.8,2.57985999]
[1646497617995,0.01893344,2650.1,2649.9,1.10602002]
[1646497618795,0.02226741,2650.1,2649.9,1.10602002]
[1646497619194,0.02226741,2650.1,2649.8,3.57985999]
[1646497619497,0.02226741,2650.1,2649.8,1.57985999]
[1646497619695,0.01893344,2650.1,2649.8,1.57985999]
[1646497619896,0.02226737,2650.1,2649.8,1.57985999]
[1646497620500,0.02226737,2650.1,2649.8,2.57985999]
[1646497620754,0.02226737,2650.1,2649.8,1.57985999]
[1646497620942,0.01893344,2650.1,2649.9,1.0]
[1646497623150,0.01893344,2650.1,2650.0,1.0]
[1646497630249,0.01745779,2650.1,2650.0,1.0]
[1646497630650,0.01745779,2650.1,2650.0,4.5]
[1646497630851,0.01745779,2650.1,2650.0,5.5]
[1646497632090,0.01745779,2650.1,2650.0,5.955]
[1646497632690,0.01745779,2650.1,2650.0,2.455]
[1646497632891,0.01745779,2650.1,2650.0,6.955]
[1646497633090,0.01745779,2650.1,2650.0,5.955]
[1646497633297,0.01745779,2650.1,2650.0,6.955]
[1646497634095,0.01745779,2650.1,2650.0,3.455]
[1646497634300,0.01745779,2650.1,2650.0,9.221]
[1646497635295,1.65042834,2650.3,2650.0,9.221]
[1646497635496,1.65042834,2650.3,2650.0,8.221]
[1646497635751,0.00202145,2650.2,2650.0,5.955]
[1646497636343,0.00202145,2650.2,2650.1,1.0]
[1646497636742,0.00202145,2650.2,2650.1,4.5]
[1646497637142,0.00202145,2650.2,2650.1,3.0]
[1646497637341,0.00202145,2650.2,2650.1,2.0]
[1646497637642,0.00202145,2650.2,2650.1,6.5]
[1646497637841,1.65042834,2650.3,2650.1,6.5]
[1646497638041,1.65376449,2650.3,2650.1,5.5]
[1646497638844,1.65042834,2650.3,2650.1,5.5]
[1646497639048,1.65042834,2650.3,2650.1,6.5]
[1646497639247,1.65042834,2650.3,2650.1,5.5]
[1646497639248,1.65353566,2650.3,2650.1,5.5]
[1646497639692,1.65353566,2650.3,2650.1,2.0]
[1646497640193,1.65042834,2650.3,2650.1,1.0]
[1646497640394,1.65353566,2650.3,2650.1,1.0]
[1646497640596,1.65353566,2650.3,2649.8,1.57985999]
[1646497640597,1.54722159,2650.2,2649.8,1.57985999]
[1646497641495,0.0031074,2650.1,2649.8,1.57985999]
[1646497642596,1.54722159,2650.2,2649.8,1.57985999]
[1646497642796,0.00310736,2650.1,2649.8,1.57985999]
[1646497643656,1.54722159,2650.2,2649.8,1.57985999]
[1646497644256,0.00312281,2650.1,2649.8,1.57985999]
[1646497644854,1.54722159,2650.2,2649.8,1.57985999]
[1646497645057,0.94381,2650.0,2649.8,1.57985999]
[1646497645255,0.94381,2650.0,2649.6,0.0031234]
[1646497645256,1.54722159,2649.9,2649.6,0.0031234]
[1646497645454,1.54737785,2649.9,2649.6,0.0031234]
[1646497646257,1.54737785,2649.9,2649.2,10.62]
[1646497646258,1.54737785,2649.9,2649.2,8.62]
[1646497646458,1.54737785,2649.9,2649.2,8.37]
[1646497646656,1.54737785,2649.9,2649.6,0.00312327]
[1646497647497,1.54737785,2649.9,2649.2,8.37]
[1646497647498,2.08648492,2649.5,2649.2,8.37]
[1646497647699,1.54737785,2649.4,2649.2,8.37]
[1646497648304,0.00302836,2650.1,2649.3,3.5]
[1646497648502,3.90723357,2650.3,2649.3,3.5]
[1646497648503,1.54749626,2650.2,2649.3,3.5]
[1646497648703,1.54749626,2650.2,2649.2,9.37]
[1646497648903,0.00426945,2650.1,2649.3,3.5]
[1646497649110,1.54749626,2650.0,2649.6,1.01472884]
[1646497649302,1.54749626,2650.0,2649.3,4.5]
[1646497649502,1.54749626,2649.9,2649.3,3.5]
[1646497649703,0.00124141,2650.2,2649.3,4.5]
[1646497649903,0.00302829,2650.1,2649.5,0.00302899]
[1646497650103,1.55044985,2650.1,2649.5,0.00302899]
[1646497650303,1.54742156,2650.0,2649.5,0.00302899]
[1646497650503,1.54742156,2649.9,2649.5,0.00302899]
[1646497650752,1.54742156,2649.8,2649.5,0.00302899]
[1646497650942,1.88909141,2650.2,2649.2,9.37]
[1646497651143,1.55038942,2650.1,2649.6,0.002888]
[1646497652144,0.95309195,2649.6,2649.2,1.0]
[1646497652943,0.94392,2650.0,2649.2,1.0]
[1646497653148,1.54753409,2649.9,2649.2,1.0]
[1646497653549,1.54753409,2649.9,2649.5,0.00288804]
[1646497654594,1.54753409,2649.8,2649.2,1.0]
[1646497654794,1.0850384,2650.1,2649.6,0.00290761]
[1646497654997,11.45515586,2650.0,2649.6,0.00290761]
[1646497655194,1.54746762,2649.9,2649.6,0.00290761]
[1646497655794,11.45388351,2649.9,2649.3,4.5]
[1646497655997,9.90641589,2649.9,2649.6,0.00290759]
[1646497656198,9.90641589,2649.9,2649.6,1.13800423]
[1646497656399,9.90641589,2649.9,2649.6,2.13800423]
[1646497656594,9.90641589,2649.9,2649.6,1.648369]
[1646497656795,9.90641589,2649.9,2649.7,1.0]
[1646497657001,9.90641589,2649.9,2649.7,4.5]
[1646497657198,9.90641589,2649.9,2649.7,1.0]
[1646497657396,9.90641589,2649.9,2649.7,2.0]
[1646497657797,9.90641589,2649.9,2649.7,3.266]
[1646497657997,9.90641589,2649.9,2649.7,4.266]
[1646497658260,9.90641589,2649.9,2649.7,8.766]
[1646497658753,0.00289966,2650.1,2649.7,5.266]
[1646497658954,0.00289966,2650.1,2649.7,8.766]
[1646497659156,0.00289966,2650.1,2649.7,2.0]
[1646497659355,1.54724771,2650.2,2649.7,2.0]
[1646497659558,7.4676636,2650.2,2649.6,1.03427012]
[1646497659755,1.55014744,2650.1,2649.6,0.5821704]
[1646497660556,1.54724771,2650.1,2649.7,3.5]
[1646497660756,5.92041589,2650.2,2649.6,0.57927012]
[1646497660956,0.00289969,2650.1,2649.7,3.5]
[1646497661157,0.00289969,2650.1,2649.6,1.58217036]
[1646497661561,0.00289969,2650.1,2649.6,0.58217036]
[1646497661756,5.92041589,2650.2,2649.7,4.5]
[1646497661992,0.00290043,2650.1,2649.7,4.5]
[1646497662197,0.00290043,2650.1,2649.7,5.5]
[1646497662592,0.00290043,2650.1,2649.7,2.0]
[1646497662793,0.00290043,2650.1,2649.7,4.5]
[1646497662993,5.92041589,2650.2,2649.7,5.5]
[1646497663194,0.00290047,2650.1,2649.7,6.5]
[1646497663998,0.00290047,2650.1,2649.7,3.0]
[1646497664201,1.5472935,2650.1,2649.7,2.0]
[1646497664398,0.00179286,2650.1,2649.7,2.0]
[1646497664599,0.00179286,2650.1,2649.7,1.0]
[1646497664805,1.54922964,2650.1,2649.7,1.0]
[1646497665302,5.37768758,2650.0,2649.7,1.0]
[1646497665503,1.54743678,2649.9,2649.7,1.0]
[1646497665757,6.82919636,2649.9,2649.7,1.0]
[1646497665944,5.28175958,2649.9,2649.7,1.0]
[1646497666746,5.28175958,2649.9,2649.6,0.00291111]
[1646497667451,5.28175958,2649.9,2649.6,1.00291111]
[1646497667848,5.28175958,2649.9,2649.7,3.5]
[1646497668147,5.28175958,2649.9,2649.7,4.5]
[1646497668351,5.28175958,2649.9,2649.7,5.5]
[1646497668565,5.28175958,2649.9,2649.7,2.0]
[1646497668751,5.28175958,2649.9,2649.7,1.0]
[1646497669153,5.28175958,2649.9,2649.8,0.02612111]
[1646497669353,5.28175958,2649.9,2649.8,3.52612111]
[1646497669598,5.28175958,2649.9,2649.8,4.52612111]
[1646497669800,5.28175958,2649.9,2649.8,4.71658252]
[1646497670003,5.28175958,2649.9,2649.8,1.21658252]
[1646497671700,0.00290182,2650.1,2649.8,1.21658252]
[1646497671898,0.00290182,2650.1,2649.8,1.02612111]
[1646497672099,0.00290182,2650.1,2649.8,0.02612111]
[1646497672504,1.54726999,2650.2,2649.8,3.52612111]
[1646497672800,1.65042834,2650.3,2650.0,1.0]
[1646497673000,0.00290277,2650.1,2650.0,4.5]
[1646497673256,0.00290277,2650.1,2650.0,6.5]
[1646497673849,1.65042834,2650.3,2650.0,4.01256327]
[1646497674049,0.00290279,2650.2,2650.0,3.0]
[1646497674252,0.00290279,2650.2,2650.0,2.0]
[1646497674450,0.00290279,2650.2,2650.0,3.0]
[1646497674850,0.00290279,2650.2,2650.0,2.0]
[1646497675054,1.65042834,2650.3,2650.0,2.0]
[1646497675251,1.65042834,2650.3,2650.0,2.87646754]
[1646497675252,0.00290277,2650.2,2650.0,2.87646754]
[1646497675652,0.00290277,2650.2,2650.0,3.87646754]
[1646497676054,1.65042834,2650.3,2650.0,3.87646754]
[1646497676455,0.00290267,2650.2,2650.0,2.87646754]
[1646497676657,0.00290267,2650.2,2650.1,1.0]
[1646497677196,0.00290267,2650.2,2650.1,1.1885]
[1646497677397,1.65042834,2650.3,2650.1,1.1885]
[1646497677599,1.65333099,2650.3,2650.1,1.1885]
[1646497678197,1.65333099,2650.3,2650.1,1.0]
[1646497678602,1.65042834,2650.3,2650.1,1.0]
[1646497678801,1.65333097,2650.3,2650.1,1.0]
[1646497679400,1.65333097,2650.3,2650.1,1.04341858]
[1646497679601,1.65191039,2650.3,2650.1,1.04341858]
[1646497680000,1.65191908,2650.3,2650.1,1.04341858]
[1646497681048,1.64900776,2650.3,2650.1,1.04341858]
[1646497681252,1.65191908,2650.3,2650.1,1.04341858]
[1646497681649,1.65191908,2650.3,2650.1,1.04234698]
[1646497682051,1.64900776,2650.3,2650.1,1.04234698]
[1646497682451,1.65191908,2650.3,2650.1,1.04234698]
[1646497683254,1.64900776,2650.3,2650.1,1.04234698]
[1646497683659,1.65190951,2650.3,2650.1,1.04234698]
[1646497684522,1.64900776,2650.3,2650.1,1.04234698]
[1646497684918,1.65190951,2650.3,2650.1,1.04234698]
[1646497685819,1.64900776,2650.3,2650.1,1.04234698]
[1646497686022,1.65190951,2650.3,2650.1,1.04234698]
[1646497687121,1.64900776,2650.3,2650.1,1.04234698]
[1646497687321,1.65191048,2650.3,2650.1,1.04234698]
[1646497687721,1.65191048,2650.3,2650.2,7.57991076]
[1646497687922,0.01285054,2650.7,2650.2,8.57991076]
[1646497688125,0.01083531,2650.8,2650.3,4.565287]
[1646497688355,1.54698267,2650.7,2650.4,4.07738729]
[1646497688555,0.0095939,2650.8,2650.4,4.07738729]
[1646497688753,0.0095939,2650.8,2650.4,9.57578729]
[1646497688956,0.0095939,2650.8,2650.6,1.15882831]
[1646497689155,0.0095939,2650.8,2650.7,4.19659877]
[1646497689355,1.55654583,2650.8,2650.4,0.9984]
[1646497689555,1.65023375,2650.6,2650.2,0.0435629]
[1646497689755,1.54695193,2650.5,2650.2,0.0435629]
[1646497690156,5.04695193,2650.5,2650.2,0.0435629]
[1646497690356,3.0,2650.3,2649.8,0.25]
[1646497690557,2.63647604,2650.4,2649.1,7.62]
[1646497690558,0.94402,2650.0,2649.1,7.62]
[1646497690760,1.54695193,2649.9,2649.1,7.62]
[1646497691056,1.54695193,2649.9,2649.8,0.00333929]
[1646497691856,1.54695193,2649.9,2649.1,9.6176]
[1646497692101,1.54695193,2649.9,2649.7,0.00333897]
[1646497692899,1.54695193,2649.9,2649.1,9.6176]
[1646497693306,1.54695193,2649.9,2649.7,0.003339]
[1646497694208,1.54695193,2649.9,2649.1,9.6176]
[1646497694506,1.54695193,2649.9,2649.7,0.003339]
[1646497695406,1.54695193,2649.9,2649.1,9.6176]
[1646497696651,1.54695193,2649.9,2649.2,0.9976]
[1646497697351,1.54819334,2650.2,2649.3,0.9976]
[1646497697550,1.54736166,2650.1,2649.3,0.9976]
[1646497697751,1.54736166,2650.0,2649.3,0.9976]
[1646497698050,3.50124141,2650.3,2649.3,0.9976]
[1646497698253,1.54736543,2650.2,2649.3,0.9976]
[1646497698955,0.94389,2650.0,2649.3,0.9976]
[1646497699155,1.57388132,2649.9,2649.6,0.00313516]
[1646497699503,1.54736543,2649.8,2649.6,0.00313516]
[1646497700105,1.54736543,2649.8,2649.3,0.9976]
[1646497700506,1.54736543,2649.8,2649.6,0.00313518]
[1646497701009,0.02651589,2649.9,2649.6,0.00313518]
[1646497701606,0.02651589,2649.9,2649.3,0.9976]
[1646497701810,1.54743632,2649.8,2649.6,0.00313516]
[1646497702010,0.02651589,2649.9,2649.6,0.00313516]
[1646497702812,0.02651589,2649.9,2649.4,0.1887]
[1646497703012,0.02651589,2649.9,2649.6,0.00313516]
[1646497704050,0.02651589,2649.9,2649.4,0.1887]
[1646497704353,0.02651589,2649.9,2649.6,0.00300172]
[1646497704952,0.02651589,2649.9,2649.4,0.1887]
[1646497705152,0.02651589,2649.9,2649.6,0.00300172]
[1646497706157,0.02651589,2649.9,2649.4,0.1887]
[1646497706652,0.02651589,2649.9,2649.6,0.00300172]
[1646497707398,0.02551589,2649.9,2649.4,0.1887]
[1646497707798,0.02551589,2649.9,2649.6,0.00328331]
[1646497708602,0.02551589,2649.9,2649.4,0.1887]
[1646497708911,0.02551589,2649.9,2649.6,0.00328331]
[1646497709102,0.94389,2650.0,2649.6,0.00328331]
[1646497709402,0.00124141,2650.2,2649.6,0.00328331]
[1646497709603,1.54856897,2650.3,2649.6,0.00328331]
[1646497709803,1.54856897,2650.3,2649.4,0.1887]
[1646497710003,1.54856897,2650.3,2649.7,0.00328328]
[1646497710766,2.57299515,2650.3,2649.7,0.00328328]
[1646497710948,1.54732756,2650.2,2649.6,0.1885]
[1646497711347,1.54732756,2650.2,2649.8,0.00298947]
[1646497712147,1.54732756,2650.2,2649.6,1.1861]
[1646497712348,1.02566759,2650.3,2649.6,1.1861]
[1646497712550,0.00124141,2650.3,2649.7,1.0]
[1646497712849,1.21798872,2650.4,2649.8,0.19148947]
[1646497713048,1.54720415,2650.3,2649.8,1.18908947]
[1646497713250,0.00298872,2650.4,2649.8,1.18908947]
[1646497713450,1.54844335,2650.5,2649.8,1.1861]
[1646497713648,1.54720194,2650.5,2649.8,1.1861]
[1646497713849,0.00298878,2650.4,2649.8,1.18908954]
[1646497714702,1.54720194,2650.5,2649.8,1.1861]
[1646497714905,1.54720194,2650.5,2649.8,1.18732342]
[1646497715202,1.54720194,2650.5,2649.8,2.18732342]
[1646497715404,1.54720194,2650.5,2649.8,2.37778483]
[1646497715804,1.54720194,2650.5,2649.8,2.37656141]
[1646497716002,1.54720194,2650.5,2649.8,1.37778483]
[1646497716404,0.94372,2650.4,2649.8,1.18732342]
[1646497716608,1.54720194,2650.3,2649.8,0.00122342]
[1646497717406,1.65147516,2650.6,2649.9,0.1885]
[1646497717607,1.54713356,2650.5,2649.9,6.3327]
[1646497717806,1.65023375,2650.6,2650.2,3.266]
[1646497718006,1.65023375,2650.6,2650.2,3.4545]
[1646497718267,1.65023375,2650.6,2650.3,1.18806141]
[1646497718463,1.54919897,2650.5,2650.2,2.0]
[1646497718664,1.54919897,2650.5,2650.2,1.0]
[1646497719268,1.65023375,2650.6,2650.2,1.0]
[1646497719664,1.54905088,2650.5,2650.2,1.0]
[1646497719965,0.00188868,2650.5,2650.0,7.7636]
[1646497720162,0.00188868,2650.5,2650.0,6.766]
[1646497720562,1.65023375,2650.6,2650.1,0.9976]
[1646497720763,1.65023375,2650.6,2650.2,3.5]
[1646497720962,0.00188865,2650.4,2650.1,0.9976]
[1646497721364,0.00188865,2650.4,2650.2,3.5]
[1646497721764,1.65023375,2650.6,2650.2,4.5]
[1646497722000,1.65023375,2650.6,2650.2,3.5]
[1646497722297,0.00321517,2650.4,2650.2,4.5]
[1646497722499,0.00321517,2650.4,2650.3,0.1885]
[1646497722997,1.65023375,2650.6,2650.3,0.1885]
[1646497723198,0.00321515,2650.5,2650.3,0.1885]
[1646497724204,1.65023375,2650.6,2650.3,0.1885]
[1646497724403,0.0031089,2650.5,2650.3,0.1885]
[1646497725603,0.001775,2650.5,2650.3,0.1885]
[1646497726351,5.17445455,2650.4,2650.3,0.1885]
[1646497726548,5.17445455,2650.4,2650.3,3.6885]
[1646497726750,5.17445455,2650.4,2650.3,4.6885]
[1646497727548,5.17445455,2650.4,2650.3,1.1885]
[1646497727749,5.17445455,2650.4,2650.3,0.1885]
[1646497728151,5.17445455,2650.4,2650.3,1.1861]
[1646497729905,5.17298181,2650.4,2650.3,1.1861]
[1646497731705,5.07298181,2650.4,2650.3,1.1861]
[1646497734352,4.92298181,2650.4,2650.3,4.6861]
[1646497734556,1.65023375,2650.6,2650.3,1.1861]
[1646497734752,1.65023375,2650.6,2650.3,2.1861]
[1646497734953,1.65023375,2650.6,2650.3,1.1861]
[1646497735156,1.65023375,2650.6,2650.3,6.9521]
[1646497735356,1.65335543,2650.6,2650.4,5.766]
[1646497735753,1.65335543,2650.6,2650.4,7.7636]
[1646497736255,1.65023375,2650.6,2650.4,3.266]
[1646497736453,1.65335541,2650.6,2650.5,0.9976]
[1646497736656,1.65335541,2650.6,2650.5,4.4976]
[1646497736860,1.60335541,2650.6,2650.5,4.4976]
[1646497737303,1.60335541,2650.6,2650.5,5.4976]
[1646497737504,1.60023375,2650.6,2650.5,5.4976]
[1646497738104,1.60023375,2650.6,2650.5,1.9976]
[1646497738310,1.60023375,2650.6,2650.5,0.9976]
[1646497738709,1.60023375,2650.6,2650.5,4.4976]
[1646497738911,1.60023375,2650.6,2650.5,0.9976]
[1646497739109,1.60023375,2650.6,2650.5,1.9976]
[1646497739309,1.60023375,2650.6,2650.5,0.9976]
[1646497739812,1.60023375,2650.6,2650.1,1.0]
[1646497740009,1.60023375,2650.6,2650.1,1.9976]
[1646497740216,1.60023375,2650.6,2650.2,3.5]
[1646497740411,1.60023375,2650.6,2650.0,4.07692089]
[1646497740610,1.60023375,2650.6,2650.1,0.98921443]
[1646497740851,1.60023375,2650.6,2650.3,0.9976]
[1646497741252,0.00308243,2650.5,2650.3,0.9976]
[1646497742256,1.60023375,2650.6,2650.4,3.5]
[1646497742456,0.00306303,2650.5,2650.4,1.0]
[1646497742861,0.00306303,2650.5,2650.3,2.45646141]
[1646497743255,0.00306303,2650.5,2650.4,0.9976]
[1646497743459,1.60023375,2650.6,2650.4,3.2636]
[1646497743659,1.60023375,2650.6,2650.4,2.266]
[1646497743860,0.00306303,2650.5,2650.4,2.266]
[1646497744060,0.00306303,2650.5,2650.4,3.2636]
[1646497744501,0.00306303,2650.5,2650.4,4.2636]
[1646497744701,1.60023375,2650.6,2650.4,4.2636]
[1646497744899,1.60201897,2650.6,2650.4,5.2636]
[1646497745801,1.60023375,2650.6,2650.4,5.2636]
[1646497746005,0.003056,2651.5,2650.6,2.266]
[1646497746204,0.02636365,2651.0,2650.8,13.786]
[1646497746402,0.02636365,2651.0,2650.9,2.721]
[1646497746602,0.02636365,2651.0,2650.9,2.266]
[1646497746803,0.02636365,2651.0,2650.9,3.45406141]
[1646497747003,0.0191878,2651.0,2650.9,3.45406141]
[1646497747201,0.0191878,2651.0,2650.9,4.45406141]
[1646497747402,0.0191878,2651.0,2650.9,3.45406141]
[1646497747602,0.0191878,2651.0,2650.9,4.45406141]
[1646497747803,0.0191878,2651.0,2650.9,4.2636]
[1646497748006,0.0191878,2651.0,2650.9,0.9976]
[1646497748277,0.0191878,2651.0,2650.6,1.1547]
[1646497748666,0.0191878,2651.0,2650.7,0.9976]
[1646497748865,0.0191878,2651.0,2650.7,3.2636]
[1646497749267,0.0191878,2651.0,2650.7,2.266]
[1646497749467,0.0191878,2651.0,2650.8,0.9976]
[1646497749767,0.0191878,2651.0,2650.6,2.1547]
[1646497749967,0.02236513,2651.0,2650.6,1.1547]
[1646497750570,0.02236513,2651.0,2650.6,3.4207]
[1646497750772,0.0191878,2651.0,2650.6,4.4207]
[1646497750966,0.00317736,2650.9,2650.6,4.4207]
[1646497751171,0.00317736,2650.9,2650.8,0.9976]
[1646497751569,0.02236516,2650.9,2650.8,0.9976]
[1646497751999,0.0191878,2650.9,2650.8,0.9976]
[1646497753310,0.0191878,2650.9,2650.8,1.9976]
[1646497754705,0.0191878,2650.9,2650.8,2.18806141]
[1646497755306,0.0029132,2651.0,2650.8,2.18806141]
[1646497755508,0.0383756,2650.9,2650.8,2.18806141]
[1646497755964,0.0383756,2650.9,2650.8,5.39714141]
[1646497756160,0.0383756,2650.9,2650.8,6.85214141]
[1646497756560,0.0029132,2651.0,2650.9,3.0]
[1646497756760,0.0049624,2651.4,2650.9,19.2386]
[1646497756961,0.01672404,2651.4,2651.0,0.1885]
[1646497757158,0.01672404,2651.4,2651.1,2.266]
[1646497757359,0.01672404,2651.4,2651.1,2.45646141]
[1646497757561,0.01672404,2651.4,2651.2,2.45646141]
[1646497757759,0.01672404,2651.4,2651.2,3.45646141]
[1646497757960,0.0049624,2651.4,2651.2,3.45646141]
[1646497758161,0.00790308,2651.4,2651.3,0.9976]
[1646497759166,0.0049624,2651.4,2651.3,3.2636]
[1646497759367,0.0049624,2651.4,2651.3,4.2636]
[1646497759604,0.0049624,2651.4,2651.3,5.7186]
[1646497760205,0.0049624,2651.4,2651.3,5.90906141]
[1646497760607,0.0049624,2651.4,2651.3,6.09756141]
[1646497763108,0.0049624,2651.4,2651.3,5.90906141]
[1646497763957,0.0049624,2651.4,2651.3,8.7870783]
[1646497764161,0.003056,2651.5,2651.4,4.5]
[1646497764360,0.00325804,2651.9,2651.6,5.94279]
[1646497764562,0.00325804,2651.9,2651.7,15.475]
[1646497764563,0.02170768,2651.9,2651.7,15.475]
[1646497764760,0.0072716,2652.0,2651.9,3.5]
[1646497764959,0.03074546,2652.6,2652.1,2.266]
[1646497765158,0.03634336,2652.4,2652.2,2.721]
[1646497765558,0.03634336,2652.4,2652.3,4.20862]
[1646497765762,0.01876234,2653.0,2652.3,4.66362]
[1646497765960,1.54594373,2652.9,2652.3,9.16362]
[1646497766158,1.54594373,2652.9,2652.5,1.0]
[1646497766363,1.54594373,2652.9,2652.5,1.455]
[1646497766760,0.0496133,2653.0,2652.8,1.17709798]
[1646497767009,0.0496133,2653.0,2652.8,2.11954798]
[1646497767209,0.0496133,2653.0,2652.8,5.38314798]
[1646497767407,0.0496133,2653.0,2652.8,6.38314798]
[1646497767607,0.0496133,2653.0,2652.9,1.0]
[1646497767807,0.05297269,2653.0,2652.8,5.44069798]